fUSD/lending_fUSD_20260408
["ID","MTS","AMOUNT","RATE_DAILY","PERIOD"]
[420014867,1775615442640,-500.0,0.00013502,2]
[420014868,1775615442650,-1501.79789242,0.00013516,2]
[420014869,1775615442660,-200.0,0.00013544,2]
[420014870,1775615442670,-1000.0,0.00013552,2]
[420014871,1775615442680,-11881.85704527,0.00013568,2]
[420014872,1775615442690,-500.0,0.00013698,2]
[420014873,1775615442700,-500.0,0.00013698,2]
[420014874,1775615442710,-500.0,0.00013698,2]
[420014875,1775615442721,-500.0,0.00013698,2]
[420014876,1775615442731,-500.0,0.00013698,2]
[420014877,1775615442741,-500.0,0.00013698,2]
[420014878,1775615442751,-500.0,0.00013698,2]
[420014879,1775615442762,-500.0,0.00013698,2]
[420014880,1775615442772,-500.0,0.00013698,2]
[420014881,1775615442782,-500.0,0.00013698,2]
[420014882,1775615442792,-500.0,0.00013698,2]
[420014883,1775615442802,-500.0,0.00013698,2]
[420014884,1775615442812,-500.0,0.00013698,2]
[420014885,1775615442822,-500.0,0.00013698,2]
[420014886,1775615442832,-500.0,0.00013698,2]
[420014887,1775615442843,-500.0,0.00013698,2]
[420014888,1775615442852,-500.0,0.00013698,2]
[420014889,1775615442862,-500.0,0.00013698,2]
[420014890,1775615442872,-500.0,0.00013698,2]
[420014891,1775615442882,-500.0,0.00013698,2]
[420014892,1775615442893,-500.0,0.00013698,2]
[420014893,1775615442903,-500.0,0.00013698,2]
[420014894,1775615442914,-500.0,0.00013698,2]
[420014897,1775615442924,-500.0,0.00013698,2]
[420014899,1775615442935,-500.0,0.00013698,2]
[420014900,1775615442945,-500.0,0.00013698,2]
[420014901,1775615442954,-500.0,0.00013698,2]
[420014902,1775615442964,-500.0,0.00013698,2]
[420014903,1775615442974,-500.0,0.00013698,2]
[420014904,1775615442984,-500.0,0.00013698,2]
[420014905,1775615442994,-500.0,0.00013698,2]
[420014906,1775615443004,-500.0,0.00013698,2]
[420014907,1775615443014,-500.0,0.00013698,2]
[420014908,1775615443025,-500.0,0.00013698,2]
[420014909,1775615443036,-490.0,0.00013698,2]
[420014910,1775615443047,-500.0,0.00013698,2]
[420014911,1775615443057,-500.0,0.00013698,2]
[420014912,1775615443068,-500.0,0.00013698,2]
[420014913,1775615443077,-500.0,0.00013698,2]
[420014914,1775615443087,-500.0,0.00013698,2]
[420014915,1775615443098,-500.0,0.00013698,2]
[420014916,1775615443109,-500.0,0.00013698,2]
[420014917,1775615443119,-500.14075642,0.00013698,2]
[420014918,1775615443130,-500.0,0.00013698,2]
[420014919,1775615443140,-500.0,0.00013698,2]
[420014920,1775615443150,-500.0,0.00013698,2]
[420014921,1775615443161,-500.0,0.00013698,2]
[420014922,1775615443172,-500.0,0.00013698,2]
[420014923,1775615443182,-500.0,0.00013698,2]
[420014924,1775615443192,-500.0,0.00013698,2]
[420014925,1775615443203,-500.0,0.00013698,2]
[420014926,1775615443213,-500.0,0.00013698,2]
[420014927,1775615443223,-500.0,0.00013698,2]
[420014928,1775615443234,-500.0,0.00013698,2]
[420014929,1775615443245,-500.0,0.00013698,2]
[420014930,1775615443255,-500.0,0.00013698,2]
[420014931,1775615443265,-500.0,0.00013698,2]
[420014932,1775615443275,-500.0,0.00013698,2]
[420014933,1775615443286,-500.0,0.00013698,2]
[420014934,1775615443297,-500.0,0.00013698,2]
[420014935,1775615443309,-500.0,0.00013698,2]
[420014936,1775615443319,-500.0,0.00013698,2]
[420014937,1775615443329,-500.0,0.00013698,2]
[420014938,1775615443339,-500.0,0.00013698,2]
[420014939,1775615443349,-500.0,0.00013698,2]
[420014940,1775615443359,-500.0,0.00013698,2]
[420014941,1775615443370,-500.0,0.00013698,2]
[420014942,1775615443380,-500.0,0.00013698,2]
[420014943,1775615443390,-500.0,0.00013698,2]
[420014944,1775615443400,-500.0,0.00013698,2]
[420014945,1775615443410,-500.0,0.00013698,2]
[420014946,1775615443420,-500.0,0.00013698,2]
[420014947,1775615443430,-500.0,0.00013698,2]
[420014948,1775615443441,-500.0,0.00013698,2]
[420014949,1775615443451,-500.0,0.00013698,2]
[420014950,1775615443462,-500.0,0.00013698,2]
[420014951,1775615443472,-500.0,0.00013698,2]
[420014952,1775615443483,-500.0,0.00013698,2]
[420014953,1775615443493,-500.0,0.00013698,2]
[420014954,1775615443502,-500.0,0.00013698,2]
[420014955,1775615443512,-500.0,0.00013698,2]
[420014956,1775615443522,-500.0,0.00013698,2]
[420014957,1775615443533,-504.74596653,0.00013698,2]
[420014958,1775615443542,-500.0,0.00013698,2]
[420014959,1775615443552,-500.0,0.00013698,2]
[420014960,1775615443564,-500.0,0.00013698,2]
[420014961,1775615443574,-500.0,0.00013698,2]
[420014962,1775615443585,-500.0,0.00013698,2]
[420014963,1775615443595,-500.0,0.00013698,2]
[420014964,1775615443606,-500.0,0.00013698,2]
[420014965,1775615443617,-500.0,0.00013698,2]
[420014966,1775615443627,-500.0,0.00013698,2]
[420014967,1775615443638,-500.0,0.00013698,2]
[420014968,1775615443648,-500.0,0.00013698,2]
[420014969,1775615443659,-500.0,0.00013698,2]
[420014970,1775615443669,-500.0,0.00013698,2]
[420014971,1775615443680,-500.0,0.00013698,2]
[420014972,1775615443689,-500.0,0.00013698,2]
[420014973,1775615443699,-500.0,0.00013698,2]
[420014974,1775615443709,-500.0,0.00013698,2]
[420014975,1775615443719,-500.0,0.00013698,2]
[420014976,1775615443731,-500.0,0.00013698,2]
[420014977,1775615443741,-198.06604293,0.00013698,2]
[420014978,1775615443751,-500.0,0.00013698,2]
[420014980,1775615443761,-500.0,0.00013698,2]
[420014981,1775615443772,-500.0,0.00013698,2]
[420014982,1775615443783,-500.0,0.00013698,2]
[420014983,1775615443792,-500.0,0.00013698,2]
[420014984,1775615443803,-500.0,0.00013698,2]
[420014985,1775615443813,-500.0,0.00013698,2]
[420014986,1775615443824,-419.40847116,0.00013698,2]
[420014987,1775615443834,-500.0,0.00013698,2]
[420014988,1775615443844,-500.0,0.00013698,2]
[420014989,1775615443855,-500.45174561,0.00013698,2]
[420014990,1775615443866,-500.0,0.00013698,2]
[420014991,1775615443876,-500.0,0.00013698,2]
[420014992,1775615443886,-500.0,0.00013698,2]
[420014993,1775615443898,-500.0,0.00013698,2]
[420014994,1775615443907,-406.01852309,0.00013698,2]
[420014995,1775615443918,-500.03954585,0.00013698,2]
[420014996,1775615443928,-500.0,0.00013698,2]
[420014997,1775615443938,-500.0,0.00013698,2]
[420014998,1775615443948,-500.0,0.00013698,2]
[420014999,1775615443958,-500.0,0.00013698,2]
[420015000,1775615443969,-500.0,0.00013698,2]
[420015001,1775615443979,-467.66178343,0.00013698,2]
[420015002,1775615443989,-500.0,0.00013698,2]
[420015003,1775615443999,-500.0,0.00013698,2]
[420015004,1775615444009,-500.0,0.00013698,2]
[420015005,1775615444020,-500.0,0.00013698,2]
[420015006,1775615444031,-500.0,0.00013698,2]
[420015007,1775615444042,-500.0,0.00013698,2]
[420015008,1775615444052,-500.0,0.00013698,2]
[420015010,1775615444062,-500.0,0.00013698,2]
[420015012,1775615444073,-500.0,0.00013698,2]
[420015014,1775615444084,-500.0,0.00013698,2]
[420015016,1775615444095,-500.0,0.00013698,2]
[420015017,1775615444106,-500.0,0.00013698,2]
[420015018,1775615444117,-500.0,0.00013698,2]
[420015019,1775615444127,-301.03967055,0.00013698,2]
[420015020,1775615444138,-500.0,0.00013698,2]
[420015021,1775615444149,-500.0,0.00013698,2]
[420015022,1775615444159,-500.0,0.00013698,2]
[420015023,1775615444171,-500.0,0.00013698,2]
[420015024,1775615444182,-500.0,0.00013698,2]
[420015025,1775615444192,-500.0,0.00013698,2]
[420015026,1775615444202,-542.71692042,0.00013698,2]
[420015027,1775615444212,-500.0,0.00013698,2]
[420015028,1775615444221,-500.0,0.00013698,2]
[420015029,1775615444230,-500.0,0.00013698,2]
[420015030,1775615444240,-500.0,0.00013698,2]
[420015031,1775615444250,-506.80312562,0.00013698,2]
[420015032,1775615444260,-500.0,0.00013698,2]
[420015033,1775615444270,-500.0,0.00013698,2]
[420015034,1775615444279,-500.0,0.00013698,2]
[420015035,1775615444289,-500.0,0.00013698,2]
[420015036,1775615444299,-500.0,0.00013698,2]
[420015037,1775615444309,-500.0,0.00013698,2]
[420015038,1775615444319,-495.40376604,0.00013698,2]
[420015039,1775615444329,-553.39225555,0.00013698,2]
[420015040,1775615444338,-500.0,0.00013698,2]
[420015041,1775615444348,-500.0,0.00013698,2]
[420015042,1775615444357,-500.0,0.00013698,2]
[420015043,1775615444366,-501.392489,0.00013698,2]
[420015044,1775615444375,-500.0,0.00013698,2]
[420015045,1775615444385,-197.481471,0.00013698,2]
[420015046,1775615444394,-500.0,0.00013698,2]
[420015047,1775615444404,-500.0,0.00013698,2]
[420015048,1775615444416,-500.0,0.00013698,2]
[420015049,1775615444425,-500.0,0.00013698,2]
[420015050,1775615444436,-500.0,0.00013698,2]
[420015051,1775615444445,-500.0,0.00013698,2]
[420015052,1775615444454,-500.0,0.00013698,2]
[420015053,1775615444463,-500.0,0.00013698,2]
[420015054,1775615444473,-500.0,0.00013698,2]
[420015055,1775615444482,-500.0,0.00013698,2]
[420015056,1775615444491,-500.0,0.00013698,2]
[420015057,1775615444501,-500.0,0.00013698,2]
[420015058,1775615444510,-629.72113567,0.00013698,2]
[420015059,1775615444520,-150.0,0.00013699,2]
[420015060,1775615444529,-150.0,0.00013699,2]
[420015061,1775615444539,-2138.0,0.00013699,2]
[420015062,1775615444549,-150.0,0.00013699,2]
[420015063,1775615444559,-2850.0,0.00013699,2]
[420015064,1775615444569,-150.0,0.00013699,2]
[420015065,1775615444579,-150.0,0.00013699,2]
[420015066,1775615444589,-166.66,0.00013699,2]
[420015067,1775615444598,-476.15,0.00013699,2]
[420015068,1775615444607,-396.8,0.00013699,2]
[420015069,1775615444617,-330.66,0.00013699,2]
[420015070,1775615444626,-275.55,0.00013699,2]
[420015071,1775615444635,-229.63,0.00013699,2]
[420015072,1775615444644,-191.36,0.00013699,2]
[420015073,1775615444654,-159.46,0.00013699,2]
[420015074,1775615444664,-797.34,0.00013699,2]
[420015075,1775615444674,-500.0,0.00013699,2]
[420015076,1775615444685,-500.0,0.00013699,2]
[420015077,1775615444695,-500.15012782,0.00013699,2]
[420015078,1775615444704,-500.0,0.00013699,2]
[420015079,1775615444714,-290.88257095,0.00013699,2]
[420015080,1775615444723,-154.57,0.00013699,2]
[420015081,1775615444733,-458.14939998,0.00013699,2]
[420015082,1775615444743,-1000.0,0.00013699,2]
[420015083,1775615444753,-1000.0,0.00013699,15]
[420015084,1775615444764,-88183.07,0.000137,2]
[420015085,1775615444774,-373.78604395,0.00013727,2]
[420015086,1775615444785,-1600.0,0.00013761,2]
[420015087,1775615444795,-501.53334874,0.00013771,2]
[420015088,1775615444805,-500.0,0.00013771,2]
[420015089,1775615444815,-500.0,0.00013771,2]
[420015090,1775615444825,-163.86569709,0.00013771,2]
[420015091,1775615444835,-288.28066678,0.00013771,2]
[420015092,1775615444846,-503.98766467,0.00013771,2]
[420015093,1775615444856,-500.32940014,0.00013771,2]
[420015094,1775615444866,-500.0,0.00013771,2]
[420015095,1775615444877,-500.0,0.00013771,2]
[420015096,1775615444887,-500.0,0.000138,2]
[420015097,1775615444897,-150.0,0.00013808,2]
[420015098,1775615444907,-150.11484194,0.00013808,2]
[420015099,1775615444917,-150.0,0.00013808,2]
[420015100,1775615444927,-150.0,0.00013808,2]
[420015101,1775615444936,-150.0,0.00013808,2]
[420015102,1775615444946,-150.12907206,0.00013808,2]
[420015103,1775615444956,-150.0,0.00013808,2]
[420015104,1775615444966,-150.0,0.00013808,2]
[420015105,1775615444977,-150.0,0.00013808,2]
[420015106,1775615444988,-150.0,0.00013808,2]
[420015107,1775615444998,-150.0,0.00013808,2]
[420015108,1775615445007,-150.0,0.00013808,2]
[420015109,1775615445017,-150.13966067,0.00013808,2]
[420015110,1775615445028,-150.0,0.00013808,2]
[420015111,1775615445037,-150.0,0.00013808,2]
[420015112,1775615445047,-166.66,0.00013836,2]
[420015113,1775615445057,-150.0,0.0001385,2]
[420015114,1775615445067,-150.0,0.00013856,2]
[420015115,1775615445077,-150.0,0.00013858,2]
[420015116,1775615445087,-150.0,0.00013878,2]
[420015117,1775615445097,-150.0,0.00013878,2]
[420015118,1775615445108,-150.0,0.00013885,2]
[420015119,1775615445117,-150.0,0.00013891,2]
[420015120,1775615445127,-4200.0,0.000139,5]
[420015121,1775615445137,-150.0,0.00013904,2]
[420015122,1775615445147,-150.0,0.00013907,2]
[420015123,1775615445156,-150.0,0.00013933,2]
[420015124,1775615445167,-150.0,0.00013936,2]
[420015125,1775615445177,-150.0,0.00013936,2]
[420015126,1775615445187,-150.0,0.00013948,2]
[420015127,1775615445197,-150.0,0.00013948,2]
[420015128,1775615445206,-150.0,0.00013952,2]
[420015129,1775615445217,-150.0,0.00013957,2]
[420015130,1775615445226,-150.0,0.00013962,2]
[420015131,1775615445235,-150.0,0.00013973,2]
[420015132,1775615445245,-150.0,0.00013973,2]
[420015133,1775615445254,-150.0,0.00013973,2]
[420015134,1775615445264,-166.66,0.00013973,2]
[420015135,1775615445274,-150.0,0.00013974,2]
[420015136,1775615445285,-11881.85704527,0.00013974,2]
[420015137,1775615445294,-28381.45321696,0.0001399,2]
[420015138,1775615445304,-150.0,0.00014,2]
[420015139,1775615445313,-150.0,0.00014006,2]
[420015140,1775615445324,-150.0,0.00014016,2]
[420015141,1775615445333,-150.0,0.00014017,2]
[420015142,1775615445342,-150.0,0.00014017,2]
[420015143,1775615445351,-150.0,0.00014027,2]
[420015144,1775615445361,-150.0,0.00014038,2]
[420015145,1775615445371,-150.0,0.00014048,2]
[420015146,1775615445381,-1500.0,0.0001405,2]
[420015147,1775615445391,-1393.05427862,0.0001405,2]
[420015148,1775615445401,-433.0,0.00014055,2]
[420015149,1775615445411,-150.0,0.00014056,2]
[420015150,1775615445421,-150.0,0.00014057,2]
[420015151,1775615445431,-421.73,0.00014061,2]
[420015152,1775615445439,-150.0,0.00014064,2]
[420015153,1775615445449,-150.0,0.00014064,2]
[420015154,1775615445458,-150.0,0.00014087,2]
[420015155,1775615445468,-150.0,0.00014087,2]
[420015156,1775615445478,-150.0,0.00014096,2]
[420015157,1775615445488,-1699.087673,0.00014097,2]
[420015158,1775615445499,-490.824287,0.00014097,7]
[420015159,1775615445509,-1697.203221,0.00014097,2]
[420015160,1775615445519,-537.720118,0.00014097,7]
[420015161,1775615445530,-567.0,0.00014098,2]
[420015162,1775615445540,-150.0,0.00014098,2]
[420015163,1775615445550,-515.28558372,0.000141,2]
[420015164,1775615445560,-150.0,0.00014105,2]
[420015165,1775615445570,-166.66,0.0001411,2]
[420015166,1775615445579,-150.0,0.00014115,2]
[420015167,1775615445590,-2351.0,0.00014121,2]
[420015168,1775615445599,-150.0,0.0001414,2]
[420015169,1775615445609,-150.0,0.00014144,2]
[420015170,1775615445619,-150.0,0.00014155,2]
[420015171,1775615445629,-150.0,0.00014157,2]
[420015172,1775615445638,-150.0,0.00014157,2]
[420015173,1775615445648,-507.0,0.00014162,2]
[420015174,1775615445657,-150.0,0.00014181,2]
[420015175,1775615445667,-150.0,0.00014192,2]
[420015176,1775615445676,-150.0,0.00014192,2]
[420015177,1775615445686,-150.0,0.00014192,2]
[420015178,1775615445695,-150.0,0.00014192,2]
[420015179,1775615445706,-500.0,0.00014192,2]
[420015180,1775615445715,-500.0,0.00014192,2]
[420015181,1775615445725,-500.0,0.00014192,2]
[420015182,1775615445735,-499.6872898,0.00014192,2]
[420015183,1775615445745,-500.0,0.00014192,2]
[420015184,1775615445754,-150.0,0.00014204,2]
[420015185,1775615445764,-150.0,0.00014223,2]
[420015186,1775615445773,-150.0,0.00014227,2]
[420015187,1775615445783,-150.0,0.00014227,2]
[420015188,1775615445793,-150.0,0.0001424,2]
[420015189,1775615445803,-150.0,0.00014247,2]
[420015190,1775615445816,-150.0,0.00014247,2]
[420015191,1775615445826,-166.66,0.00014247,2]
[420015192,1775615445836,-500.0,0.00014247,2]
[420015193,1775615445846,-150.0,0.00014247,2]
[420015194,1775615445856,-150.0,0.00014247,2]
[420015195,1775615445866,-1000.0,0.00014247,2]
[420015196,1775615445875,-1000.0,0.00014247,2]
[420015197,1775615445885,-1000.0,0.00014247,2]
[420015198,1775615445895,-150.0,0.00014254,2]
[420015199,1775615445905,-880.09,0.00014258,2]
[420015200,1775615445914,-150.0,0.00014264,2]
[420015201,1775615445924,-150.0,0.00014268,2]
[420015202,1775615445934,-150.0,0.00014288,2]
[420015203,1775615445944,-150.0,0.00014296,2]
[420015204,1775615445954,-150.0,0.00014296,2]
[420015205,1775615445964,-150.0,0.00014303,2]
[420015206,1775615445974,-150.0,0.00014306,2]
[420015207,1775615445985,-500.69200359,0.00014319,2]
[420015208,1775615445995,-1000.0,0.00014319,2]
[420015209,1775615446005,-1001.50520245,0.00014319,2]
[420015210,1775615446015,-1000.0,0.00014319,2]
[420015211,1775615446025,-150.0,0.0001432,2]
[420015212,1775615446034,-150.0,0.0001432,2]
[420015213,1775615446044,-150.0,0.00014336,2]
[420015214,1775615446054,-150.0,0.00014345,2]
[420015215,1775615446064,-150.0,0.00014347,2]
[420015216,1775615446073,-1000.0,0.00014348,2]
[420015217,1775615446083,-1000.0,0.0001435,2]
[420015218,1775615446092,-150.0,0.00014353,2]
[420015219,1775615446102,-150.0,0.00014366,2]
[420015220,1775615446112,-150.0,0.00014366,2]
[420015221,1775615446123,-11881.85704527,0.00014381,2]
[420015222,1775615446133,-150.0,0.00014384,2]
[420015223,1775615446142,-166.66,0.00014384,2]
[420015224,1775615446152,-150.0,0.00014389,2]
[420015225,1775615446162,-1573.0,0.000144,2]
[420015226,1775615446172,-150.0,0.00014402,2]
[420015227,1775615446183,-1000.0,0.00014416,2]
[420015228,1775615446192,-150.0,0.00014422,2]
[420015229,1775615446202,-421.73,0.00014423,2]
[420015230,1775615446212,-150.0,0.0001443,2]
[420015231,1775615446222,-150.0,0.00014432,2]
[420015232,1775615446232,-150.0,0.00014436,2]
[420015233,1775615446242,-150.0,0.00014436,2]
[420015234,1775615446252,-150.0,0.00014447,2]
[420015235,1775615446262,-150.0,0.00014447,2]
[420015236,1775615446272,-150.0,0.00014452,2]
[420015237,1775615446282,-150.0,0.00014466,2]
[420015238,1775615446293,-150.0,0.00014472,2]
[420015239,1775615446303,-150.0,0.00014479,2]
[420015240,1775615446313,-150.0,0.00014499,2]
[420015241,1775615446323,-150.0,0.00014501,2]
[420015247,1775615446597,-150.0,0.00014506,2]
[420015248,1775615446608,-150.0,0.00014506,2]
[420015249,1775615446618,-150.0,0.00014513,2]
[420015250,1775615446627,-1011.98167316,0.00014516,2]
[420015251,1775615446638,-1292.69854844,0.0001452,2]
[420015252,1775615446648,-150.0,0.00014527,2]
[420015253,1775615446657,-150.0,0.00014551,2]
[420015254,1775615446667,-150.0,0.00014555,2]
[420015255,1775615446676,-1000.0,0.00014567,2]
[420015256,1775615446686,-150.0,0.00014575,2]
[420015257,1775615446695,-150.0,0.00014575,2]
[420015258,1775615446704,-150.0,0.00014575,2]
[420015259,1775615446714,-150.0,0.00014575,2]
[420015260,1775615446723,-150.0,0.00014575,2]
[420015261,1775615446734,-150.0,0.00014575,2]
[420015262,1775615446743,-150.0,0.00014596,2]
[420015263,1775615446752,-1003.61823881,0.00014598,2]
[420015264,1775615446761,-188.7915,0.000146,2]
[420015265,1775615446771,-150.0,0.000146,2]
[420015266,1775615446780,-500.0,0.0001462,2]
[420015267,1775615446790,-500.0,0.0001462,2]
[420015268,1775615446799,-500.0,0.0001462,2]
[420015269,1775615446808,-500.0,0.0001462,2]
[420015270,1775615447028,-500.0,0.0001462,2]
[420015271,1775615447039,-500.0,0.0001462,2]
[420015272,1775615447050,-150.0,0.00014623,2]
[420015273,1775615447060,-500.60430488,0.00014626,2]
[420015274,1775615447070,-500.0,0.00014626,2]
[420015275,1775615447080,-500.0,0.00014626,2]
[420015276,1775615447090,-500.0,0.00014626,2]
[420015277,1775615447100,-500.0,0.00014626,2]
[420015278,1775615447110,-150.0,0.00014638,2]
[420015279,1775615447120,-150.0,0.00014645,2]
[420015280,1775615447130,-150.0,0.00014645,2]
[420015281,1775615447140,-150.0,0.0001465,2]
[420015282,1775615447150,-150.0,0.00014652,2]
[420015283,1775615447160,-1889.59,0.00014653,2]
[420015284,1775615447170,-229.31,0.00014661,2]
[420015285,1775615447180,-500.0,0.00014667,2]
[420015286,1775615447189,-500.0,0.00014667,2]
[420015287,1775615447199,-500.0,0.00014667,2]
[420015288,1775615447208,-500.0,0.00014667,2]
[420015289,1775615447218,-500.0,0.00014667,2]
[420015290,1775615447228,-500.0,0.00014667,2]
[420015291,1775615447237,-500.0,0.00014667,2]
[420015292,1775615447247,-244.23047354,0.00014667,2]
[420015293,1775615447256,-500.47050729,0.00014667,2]
[420015294,1775615447266,-474.64837932,0.00014667,2]
[420015295,1775615447276,-500.0,0.00014667,2]
[420015296,1775615447286,-150.0,0.00014671,2]
[420015297,1775615447296,-150.0,0.00014679,2]
[420015298,1775615447306,-150.0,0.00014685,2]
[420015299,1775615447316,-162.0,0.00014689,2]
[420015300,1775615447327,-150.0,0.00014699,2]
[420015301,1775615447337,-150.0,0.00014703,2]
[420015302,1775615447348,-150.0,0.00014703,2]
[420015303,1775615447358,-150.0,0.00014715,2]
[420015304,1775615447368,-150.0,0.00014715,2]
[420015305,1775615447378,-150.0,0.00014719,2]
[420015306,1775615447388,-1573.0,0.0001472,2]
[420015307,1775615447398,-150.0,0.0001472,2]
[420015308,1775615447408,-150.0,0.00014729,2]
[420015309,1775615447417,-150.0,0.00014749,2]
[420015310,1775615447427,-150.0,0.00014762,2]
[420015311,1775615447437,-150.0,0.00014767,2]
[420015312,1775615447447,-150.0,0.00014785,2]
[420015313,1775615447457,-150.0,0.00014785,2]
[420015314,1775615447467,-11881.85704527,0.00014787,2]
[420015315,1775615447476,-672.70630045,0.00014795,2]
[420015316,1775615447486,-1382.1111067,0.00014795,2]
[420015317,1775615447496,-1500.0,0.00014795,2]
[420015318,1775615447507,-553.81547268,0.00014795,2]
[420015319,1775615447517,-14123.3464316,0.00014796,2]
[420015320,1775615447527,-150.0,0.00014798,2]
[420015321,1775615447537,-150.0,0.00014803,2]
[420015322,1775615447547,-150.0,0.00014805,2]
[420015323,1775615447556,-150.0,0.00014815,2]
[420015324,1775615447565,-281.15,0.00014819,2]
[420015325,1775615447575,-150.0,0.00014831,2]
[420015326,1775615447586,-150.0,0.00014831,2]
[420015327,1775615447596,-300.64010866,0.00014837,2]
[420015328,1775615447606,-537.95642346,0.00014837,2]
[420015329,1775615447616,-290.41144973,0.00014839,2]
[420015330,1775615447627,-150.0,0.00014845,2]
[420015331,1775615447637,-150.0,0.00014848,2]
[420015332,1775615447646,-1150.0,0.00014853,2]
[420015333,1775615447656,-1150.0,0.00014853,2]
[420015334,1775615447666,-1150.0,0.00014853,2]
[420015335,1775615447677,-1150.0,0.00014853,2]
[420015336,1775615447687,-1150.0,0.00014853,2]
[420015337,1775615447696,-1150.0,0.00014853,2]
[420015338,1775615447706,-1150.0,0.00014853,2]
[420015339,1775615447716,-1150.0,0.00014853,2]
[420015340,1775615447726,-1150.0,0.00014853,2]
[420015341,1775615447736,-1080.0,0.00014853,2]
[420015342,1775615447747,-281.15,0.00014853,2]
[420015343,1775615447757,-150.0,0.00014854,2]
[420015344,1775615447767,-150.0,0.00014854,2]
[420015345,1775615447777,-150.0,0.00014863,2]
[420015346,1775615447788,-1500.0,0.00014866,2]
[420015347,1775615447798,-1500.0,0.00014866,2]
[420015348,1775615447809,-150.0,0.00014882,2]
[420015349,1775615447819,-150.0,0.00014886,2]
[420015350,1775615447830,-281.15,0.00014888,2]
[420015351,1775615447841,-1500.0,0.00014896,2]
[420015352,1775615447851,-150.0,0.00014897,2]
[420015353,1775615447862,-150.0,0.00014904,2]
[420015354,1775615447872,-150.0,0.00014911,2]
[420015355,1775615447883,-181.08010149,0.00014914,2]
[420015356,1775615447893,-500.0,0.00014914,2]
[420015357,1775615447903,-500.0,0.00014914,2]
[420015358,1775615447913,-500.0,0.00014914,2]
[420015359,1775615447924,-500.0,0.00014914,2]
[420015360,1775615447933,-500.0,0.00014914,2]
[420015361,1775615447944,-578.20924308,0.00014914,2]
[420015362,1775615447954,-500.0,0.00014914,2]
[420015363,1775615447965,-623.58710448,0.00014914,2]
[420015364,1775615447975,-151.0,0.00014914,2]
[420015365,1775615447985,-200.0,0.00014914,2]
[420015366,1775615447995,-500.0,0.00014914,2]
[420015367,1775615448005,-8260.13072239,0.00014914,2]
[420015368,1775615448015,-151.0,0.00014914,2]
[420015369,1775615448025,-500.0,0.00014914,2]
[420015370,1775615448035,-151.0,0.00014914,2]
[420015371,1775615448045,-500.0,0.00014914,2]
[420015372,1775615448055,-151.0,0.00014914,2]
[420015373,1775615448065,-431.0128461,0.00014914,2]
[420015374,1775615448075,-500.0,0.00014914,2]
[420015375,1775615448086,-157.93972627,0.00014914,2]
[420015376,1775615448096,-500.0,0.00014914,2]
[420015377,1775615448107,-500.0,0.00014914,2]
[420015378,1775615448117,-500.0,0.00014914,2]
[420015379,1775615448127,-500.0,0.00014914,2]